Workbook

Sheet Sheet1
A1: Synthesize y=sinx | I1: =PI()/180 -> 0.01745329252
A2: 0<x<90 | D2: Bu sayfada K1, k2, k3 çözüldükten sonra delta1, delta2 ve delta bulundu ve delta sıfır olması için krank açıları değiştirildi | M2: A.C. RAO,;” Optimum Design of Four-Bar Function Generators with Minimum Variance Criterion”,
M3: JOURNAL OF OPTIMIZATION THEORY AND APPLICATIONS: Vol. 29, No. 1, SEPTEMBER 1979
B4: qin | C4: 100.438046 | D4: =C4*D_R -> 1.752974598 | M4: F. Y. CHEN, Ohio VEN-LIN CHAN.; “Dimensional Synthesis of Mechanisms for Function Generation Using Marquardt's Compromise”,
B5: fin | C5: 24.68871443 | D5: =C5*D_R -> 0.4308993549 | M5: Journal of Engineering for Industry FEBRUARY 1974 / 131-137
D11: q | E11: f | G11: q | H11: f | J11: cosf | K11: cosq | L11: cos(f-q) | M11: cos2f | N11: cos2q | O11: cosfcosq | P11: cosq*cos(f-q) | Q11: cosf*cos(f-q)
D12: =B12*$D$7 -> 0 | E12: 0 | G12: =D12*D_R+$D$4 -> 1.752974598 | H12: =E12*D_R+$D$5 -> 0.4308993549 | J12: =COS(H12) -> 0.9085904673 | K12: =COS(G12) -> -0.1811722252 | L12: =COS(H12-G12) -> 0.2461645995 | M12: =J12^2 -> 0.8255366373 | N12: =K12^2 -> 0.03282337519 | O12: =J12*K12 -> -0.1646113568 | P12: =L12*K12 -> -0.04459818826 | Q12: =J12*L12 -> 0.2236628085 | S12: =(-SIN(G12)*$C$31-SIN(H12-G12))*($C$30*COS(H12)-$C$31*COS(G12)+$C$32-COS(H12-G12)) -> -0.03520644552 | T12: =(-SIN(H12)*$C$30+SIN(H12-G12))*($C$30*COS(H12)-$C$31*COS(G12)+$C$32-COS(H12-G12)) -> 0.03663689494
D13: 40 | E13: 28 | G13: =D13*D_R+$D$4 -> 2.451106299 | H13: 0.9195915454 | J13: =COS(H13) -> 0.6061450732 | K13: =COS(G13) -> -0.7709363408 | L13: =COS(H13-G13) -> 0.03927147218 | M13: =J13^2 -> 0.3674118498 | N13: 0.5943428415 | O13: =J13*K13 -> -0.4672992647 | P13: =L13*K13 -> -0.03027580506 | Q13: =J13*L13 -> 0.02380420938 | S13: =(-SIN(G13)*$C$31-SIN(H13-G13))*($C$30*COS(H13)-$C$31*COS(G13)+$C$32-COS(H13-G13)) -> 0.05155902333 | T13: =(-SIN(H13)*$C$30+SIN(H13-G13))*($C$30*COS(H13)-$C$31*COS(G13)+$C$32-COS(H13-G13)) -> -0.05988885816
D14: 80 | E14: 61.6 | G14: 3.149237999 | H14: 1.506022174 | J14: 0.06472886682 | K14: -0.9999707745 | L14: -0.07235621345 | M14: 0.0041898262 | N14: 0.9999415498 | O14: -0.06472697509 | P14: 0.07235409881 | Q14: -0.004683535705 | S14: -0.001299735863 | T14: 0.001651084313
D15: 120 | E15: 96 | G15: 3.8473697 | H15: 2.106415437 | J15: -0.5103735426 | K15: -0.7611077694 | L15: -0.1693380069 | M15: 0.260481153 | N15: 0.5792850366 | O15: 0.3884492685 | P15: 0.1288844727 | Q15: 0.08642563848 | S15: -0.03965512755 | T15: 0.05139849901
D16: 160 | E16: 129 | G16: 4.545501401 | H16: 2.68237409 | J16: -0.8963991411 | K16: -0.1661139802 | L16: -0.2881850976 | M16: 0.8035314201 | N16: 0.02759385442 | O16: 0.1489044292 | P16: 0.04787157361 | Q16: 0.258328874 | S16: 0.0134316543 | T16: -0.01630800836
D17: 200 | E17: 170 | G17: 5.243633102 | H17: 3.397959083 | J17: -0.9673177168 | K17: 0.5066063865 | L17: -0.2714292224 | M17: 0.9357035653 | N17: 0.2566500308 | O17: -0.4900493331 | P17: -0.1375077775 | Q17: 0.2625582957 | S17: 0.02466265642 | T17: -0.0244797375
D18: 240 | E18: 225 | G18: 5.941764803 | H18: 4.357890172 | J18: -0.3471203812 | K18: 0.9422799946 | L18: -0.01307793116 | M18: 0.120492559 | N18: 0.8878915882 | O18: -0.3270845909 | P18: -0.0123230729 | Q18: 0.004539616448 | S18: -0.03190000308 | T18: 0.02442203884
D19: 280 | E19: 275 | G19: 6.639896503 | H19: 5.230554798 | J19: 0.4952875641 | K19: 0.937050321 | L19: 0.1607540793 | M19: 0.2453097712 | N19: 0.8780633041 | O19: 0.464109371 | P19: 0.1506346616 | Q19: 0.07961949637 | S19: 0.02036582232 | T19: -0.01515184118
D20: 320 | E20: 322 | G20: 7.338028204 | H20: 6.050859546 | J20: 0.9731335409 | K20: 0.493364388 | L20: 0.2798402134 | M20: 0.9469888885 | N20: 0.2434084194 | O20: 0.4801094339 | P20: 0.1380631956 | Q20: 0.2723218977 | S20: -0.001957870278 | T20: 0.001719908462
J24: =SUM(J12:J22) -> 0.3266747308 | K24: =SUM(K12:K22) -> 0 | L24: -0.08835610722 | M24: =SUM(M12:M22) -> 4.50964567 | N24: 4.5 | O24: -0.03219901802 | P24: 0.3131031586 | Q24: 1.206577301 | S24: =SUM(S12:S22) -> -2.592074075e-08 | T24: =SUM(T12:T22) -> -1.964148893e-08
C26: =M24 -> 4.50964567 | D26: =-O24 -> 0.03219901802 | E26: =J24 -> 0.3266747308 | G26: =Q24 -> 1.206577301 | M26: =M27/D_R -> 329.3404552
C27: =O24 -> -0.03219901802 | D27: =-N24 -> -4.5 | E27: =K24 -> 0 | G27: =P24 -> 0.3131031586 | K27: 75 | L27: =K27*D_R -> 1.308996939 | M27: =FourBar(ABS(F31),F32,ABS(F33),F30,-1,L27+PI()) -> 5.748075303
C28: =J24 -> 0.3266747308 | D28: =-K24 -> 0 | E28: 9 | G28: =L24 -> -0.08835610722
B30: K1 | C30: =MMULT(MINVERSE(C26:E28),G26:G28) -> 0.2694850773 | E30: a1 | F30: 1 | I30: d1 | J30: =S24 -> -2.592074075e-08
B31: K2 | C31: -0.07150673633 | E31: a2 | F31: =F30/C30 -> 3.710780612 | G31: =-F31 -> -3.710780612 | I31: d2 | J31: =T24 -> -1.964148893e-08
B32: K3 | C32: -0.01959889692 | E32: a3 | F32: =SQRT(F30^2+F31^2+F33^2-2*C32*F31*F33) -> 14.4328615 | I32: d | J32: =SQRT(J30^2+J31^2) -> 3.252188322e-08
E33: a4 | F33: =F30/C31 -> -13.98469643 | G33: =-F33 -> 13.98469643
I34: =MIN(J37:J55) -> 0 | K34: =SQRT(SUM(L37:L47)) -> 0
F35: Generated by Four-Bar | I35: =MAX(J37:J55) -> 0 | J35: =MAX(-I34,I35) -> 0
C36: q | F36: f | G36: e
C37: =D37/D_R-$C$4 -> 0 | D37: =G12 -> 1.752974598 | E37: =FourBar($F$31,$F$32,$G$33,$F$30,-1,D37) -> 3.541181044 | F37: =E37/D_R-180-$C$5 -> -1.793986123 | G37: =F37-E12 -> -1.793986123
C38: 40 | D38: =G13 -> 2.451106299 | E38: =FourBar($F$31,$F$32,$G$33,$F$30,-1,D38) -> 4.101776072 | F38: 30.32574303 | G38: 2.325743029
C39: 80 | D39: 3.149237999 | E39: 4.646585123 | F39: 61.54100225 | G39: -0.05899774775
C40: 120 | D40: 3.8473697 | E40: 5.213299452 | F40: 94.01134152 | G40: -1.988658477
C41: 160 | D41: 4.545501401 | E41: 5.838021809 | F41: 129.8052959 | G41: 0.8052959329
C42: 200 | D42: 5.243633102 | E42: 6.570171191 | F42: 171.7543655 | G42: 1.754365512
C43: 240 | D43: 5.941764803 | E43: 7.455826943 | F43: 222.4987022 | G43: -2.501297787
C44: 280 | D44: 6.639896503 | E44: =FourBar($F$31,$F$32,$G$33,$F$30,-1,D44)+2*PI() -> 8.398894167 | F44: 276.5324739 | G44: 1.532473931
C45: 320 | D45: 7.338028204 | E45: =FourBar($F$31,$F$32,$G$33,$F$30,-1,D45)+2*PI() -> 9.19031943 | F45: 321.8778013 | G45: -0.1221986992
B49: =MOD(B51*B52,360) -> 90 | C49: =B49+C4 -> 190.438046 | D49: =C49*D_R -> 3.323770925 | E49: =FourBar($F$31,$F$32,$G$33,$F$30,-1,D49) -> 4.78490138 | F49: =E49/D_R-C5-180 -> 69.46594005 | J49: A' | K49: =2*COS(D49-D4) -> 1.225148455e-16 | L49: =2*SIN(D49-D4) -> 2
J50: A0 | K50: 0 | L50: 0
B51: 5 | J51: A | K51: =F31*COS(D49) -> -3.649372329 | L51: =F31*SIN(D49) -> -0.6722903808
B52: 162 | J52: B | K52: =K53+G33*COS(E49) -> 2.013175467 | L52: =G33*SIN(E49) -> -13.94794643
J53: B0 | K53: =1 -> 1 | L53: 0
J54: B' | K54: =2*COS(E49-PI()-D5)+1 -> 1.701528264 | L54: =2*SIN(E49-PI()-D5) -> 1.87292768
